bitfinex-derivatives/quotes_ETHF0:USTF0_20240920
["timestamp","ask_amount","ask_price","bid_price","bid_amount"]
[1726868868138,0.39266,2546.3,2546.2,1.19818]
[1726868873034,2.45210873,2546.3,2546.2,1.19818]
[1726868873228,2.45206211,2546.3,2546.2,1.19818]
[1726868873535,2.45199583,2546.3,2546.2,1.19818]
[1726868873938,2.45198403,2546.3,2546.2,1.19818]
[1726868874335,2.45199524,2546.3,2546.2,1.19818]
[1726868874533,2.45194721,2546.3,2546.2,1.19818]
[1726868874733,0.39266,2546.3,2546.2,1.19818]
[1726868874934,2.45192778,2546.3,2546.2,1.19818]
[1726868875136,2.45194147,2546.3,2546.2,1.19818]
[1726868875338,2.45188323,2546.3,2546.2,1.19818]
[1726868875837,2.45191395,2546.3,2546.2,1.19818]
[1726868876040,2.4519388,2546.3,2546.2,1.19818]
[1726868876243,0.39266,2546.3,2546.2,1.19818]
[1726868876435,2.4519288,2546.4,2546.3,0.39266]
[1726868876745,2.4519288,2546.4,2546.3,0.77296]
[1726868879740,2.4519288,2546.4,2546.3,0.3803]
[1726868885545,0.39265,2546.4,2546.3,0.3803]
[1726868886339,2.4519288,2546.4,2546.3,0.3803]
[1726868886535,0.39265,2546.4,2546.3,0.3803]
[1726868886739,2.4519288,2546.4,2546.3,0.3803]
[1726868887446,0.39265,2546.4,2546.3,0.3803]
[1726868887641,2.4519288,2546.4,2546.3,0.3803]
[1726868888036,0.39265,2546.4,2546.3,0.3803]
[1726868888845,2.4519188,2546.5,2546.3,0.3803]
[1726868889059,0.39265,2546.4,2546.3,1.40982346]
[1726868890543,0.39265,2546.4,2546.3,1.80248346]
[1726868891139,2.4519288,2546.4,2546.3,0.77296]
[1726868898261,0.39265,2546.4,2546.3,1.80248346]
[1726868900377,0.39265,2546.4,2546.3,3.62372118]
[1726868906274,2.4519288,2546.4,2546.3,1.80174941]
[1726868907474,2.0592788,2546.4,2546.3,1.80174941]
[1726868907680,2.4519188,2546.5,2546.3,1.80174941]
[1726868908178,2.4519188,2546.5,2546.4,0.39265]
[1726868910280,2.0599983,2546.5,2546.4,0.39265]
[1726868910675,2.0599983,2546.5,2546.4,3.60045]
[1726868910879,2.0599983,2546.5,2546.4,0.39265]
[1726868911384,2.4526283,2546.5,2546.4,0.39265]
[1726868912370,2.0599983,2546.5,2546.4,0.39265]
[1726868912575,2.0599983,2546.5,2546.4,3.60045]
[1726868912981,2.0599983,2546.5,2546.4,0.39265]
[1726868913277,0.39263,2546.6,2546.4,4.51394831]
[1726868913278,2.0599983,2546.6,2546.4,4.51394831]
[1726868913586,2.0599983,2546.6,2546.5,1.42119444]
[1726868913587,0.39262,2546.6,2546.5,1.42119444]
[1726868913776,0.39262,2546.6,2546.5,1.79949444]
[1726868913983,0.39262,2546.6,2546.5,2.07691818]
[1726868914876,0.39262,2546.6,2546.5,0.77092]
[1726868915076,0.39262,2546.6,2546.5,3.10525158]
[1726868915282,0.39262,2546.6,2546.5,1.79932665]
[1726868916085,0.39262,2546.6,2546.5,3.10519199]
[1726868916383,0.39261,2546.7,2546.5,1.79930433]
[1726868916590,0.39261,2546.7,2546.6,0.3819]
[1726868916779,2.4526083,2546.7,2546.6,0.3819]
[1726868916973,0.39261,2546.7,2546.6,0.3819]
[1726868917483,2.4526083,2546.7,2546.6,0.3819]
[1726868917687,0.39261,2546.7,2546.6,0.3819]
[1726868921288,0.39261,2546.7,2546.6,0.77452]
[1726868925487,0.3926,2546.7,2546.6,0.7745]
[1726868925901,2.45196418,2546.8,2546.6,1.80288433]
[1726868926095,2.45196418,2546.8,2546.7,0.3894]
[1726868926292,2.45196418,2546.8,2546.7,0.782]
[1726868926492,2.45158235,2546.8,2546.7,0.782]
[1726868926895,2.45158235,2546.8,2546.7,3.9898]
[1726868927293,2.45158235,2546.8,2546.7,0.782]
[1726868927802,2.05899235,2546.8,2546.7,0.782]
[1726868928003,2.05899235,2546.8,2546.7,3.9898]
[1726868928399,0.39259,2546.8,2546.7,5.01818433]
[1726868928591,0.39259,2546.8,2546.7,0.782]
[1726868929397,0.39259,2546.8,2546.7,1.81038433]
[1726868929594,2.45157235,2546.9,2546.7,0.782]
[1726868929798,0.39259,2546.8,2546.7,0.782]
[1726868930205,0.39259,2546.8,2546.7,5.01818433]
[1726868930699,0.39259,2546.8,2546.7,1.81038433]
[1726868931599,0.39259,2546.8,2546.7,5.01818433]
[1726868931798,0.39259,2546.8,2546.7,1.81038433]
[1726868932000,3.04040235,2547.0,2546.8,0.39258]
[1726868932001,0.39258,2546.9,2546.8,0.39258]
[1726868932209,0.39258,2546.9,2546.8,1.02838433]
[1726868933806,0.39256,2547.0,2546.7,4.62558433]
[1726868934004,0.39255,2547.1,2546.9,1.42095433]
[1726868934198,2.45152235,2547.2,2546.9,1.02838433]
[1726868934400,0.39252,2547.2,2547.1,0.39254]
[1726868934798,0.39252,2547.2,2547.1,0.80524]
[1726868934999,2.45150235,2547.3,2547.2,0.39252]
[1726868935310,2.45150235,2547.3,2547.1,0.80523]
[1726868935510,0.39252,2547.2,2547.1,0.80523]
[1726868935700,2.05899235,2547.3,2547.1,0.4127]
[1726868936007,0.39252,2547.2,2547.1,0.80524]
[1726868936198,2.45151235,2547.3,2547.1,0.80524]
[1726868937296,0.39252,2547.3,2547.2,0.39252]
[1726868937497,0.39252,2547.3,2547.1,0.39254]
[1726868937706,0.98136,2547.1,2546.8,1.02838433]
[1726868938007,0.98136,2547.1,2546.7,1.02838433]
[1726868938008,0.39259,2546.8,2546.7,1.02838433]
[1726868938199,0.39259,2546.8,2546.6,4.23618433]
[1726868938393,0.39259,2546.8,2546.6,4.62880433]
[1726868939207,0.77838,2546.9,2546.6,4.62880433]
[1726868940897,0.77838,2546.9,2546.7,1.02838433]
[1726868941904,0.77838,2546.9,2546.6,4.62880433]
[1726868942106,0.77838,2546.9,2546.7,1.02838433]
[1726868942811,0.77838,2546.9,2546.6,5.02720433]
[1726868943012,0.77838,2546.9,2546.7,1.02838433]
[1726868943612,0.77838,2546.9,2546.6,5.02720433]
[1726868945109,0.77838,2546.9,2546.7,0.3926]
[1726868945306,0.39258,2546.9,2546.7,0.3926]
[1726868945608,0.39258,2546.9,2546.8,0.3906]
[1726868946299,2.05899235,2547.1,2546.9,0.39256]
[1726868946501,2.85749235,2547.4,2547.1,0.39254]
[1726868946704,2.05899235,2547.3,2547.2,0.39252]
[1726868947008,2.45149235,2547.4,2547.2,0.39252]
[1726868947314,2.45149235,2547.4,2547.3,0.3906]
[1726868948513,0.3925,2547.4,2547.3,0.3906]
[1726868948711,2.45149235,2547.4,2547.3,0.3906]
[1726868949514,0.3925,2547.4,2547.3,0.3906]
[1726868955109,0.39249,2547.5,2547.3,0.78311]
[1726868955313,0.39249,2547.4,2547.3,0.3906]
[1726868955511,0.39249,2547.5,2547.3,0.78311]
[1726868956212,0.39249,2547.5,2547.3,0.3906]
[1726868956918,0.39249,2547.4,2547.3,0.3906]
[1726868959015,2.83459235,2547.6,2547.3,0.78311]
[1726868959016,0.39249,2547.5,2547.3,0.78311]
[1726868959215,0.7756,2547.6,2547.3,0.78311]
[1726868959520,2.83459235,2547.6,2547.3,0.3906]
[1726868959715,2.83459235,2547.6,2547.3,0.78311]
[1726868959918,0.39249,2547.5,2547.3,0.78311]
[1726868960622,0.39248,2547.5,2547.3,0.3906]
[1726868960820,0.39248,2547.5,2547.4,0.3987]
[1726868961210,0.39247,2547.6,2547.4,0.79119]
[1726868961613,0.39247,2547.6,2547.5,0.3846]
[1726868964410,2.45144235,2547.7,2547.5,0.77707]
[1726868964620,3.04006235,2547.9,2547.5,0.3846]
[1726868964817,0.39246,2547.7,2547.5,0.77708]
[1726868965316,0.39246,2547.6,2547.5,0.3846]
[1726868965928,0.39246,2547.7,2547.5,0.77708]
[1726868967118,7.69878021,2548.0,2547.6,0.39246]
[1726868967119,0.39244,2547.8,2547.6,0.39246]
[1726868967318,0.39244,2547.8,2547.7,0.3879]
[1726868988535,0.3934,2547.9,2547.5,3.5924]
[1726868988536,0.39246,2547.6,2547.5,3.5924]
[1726868988733,0.39246,2547.6,2547.5,4.39098]
[1726868988933,0.39246,2547.6,2547.5,1.18318]
[1726868990428,0.39246,2547.7,2547.5,1.18318]
[1726868991736,0.3934,2547.9,2547.5,0.7907]
[1726868992035,0.39244,2547.8,2547.6,0.39245]
[1726868992834,0.39246,2547.7,2547.5,1.81908433]
[1726868993043,0.39246,2547.6,2547.5,2.21155433]
[1726868993334,0.39246,2547.7,2547.5,2.21155433]
[1726868993525,0.39246,2547.6,2547.5,1.02838433]
[1726868993731,0.39248,2547.5,2547.4,0.3987]
[1726868994132,3.85510235,2547.8,2547.4,0.3987]
[1726868994133,2.05899235,2547.7,2547.4,0.39249]
[1726868994432,0.39246,2547.6,2547.4,0.78029]
[1726868995836,0.39246,2547.6,2547.4,0.39249]
[1726868996336,2.45145235,2547.7,2547.5,0.39248]
[1726868996534,0.39246,2547.7,2547.5,0.39248]
[1726868997239,0.39246,2547.7,2547.6,0.3768]
[1726868997639,6.37625235,2547.7,2547.6,0.3768]
[1726868997941,4.31726,2547.7,2547.6,0.3768]
[1726868999237,6.37625235,2547.7,2547.6,0.3768]
[1726868999432,4.31726,2547.7,2547.6,0.3768]
[1726869000047,6.37625235,2547.7,2547.6,0.3768]
[1726869001236,4.31726,2547.7,2547.6,0.3768]
[1726869002442,6.37625235,2547.7,2547.6,0.3768]
[1726869002849,4.31726,2547.7,2547.6,0.3768]
[1726869003441,6.37625235,2547.7,2547.6,0.3768]
[1726869003955,0.39246,2547.7,2547.6,0.3768]
[1726869004141,0.39246,2547.7,2547.6,0.7631]
[1726869004445,4.31726,2547.7,2547.6,0.7631]
[1726869004649,0.39246,2547.7,2547.6,0.7631]
[1726869004849,4.31726,2547.7,2547.6,0.7631]
[1726869005060,4.31726,2547.7,2547.6,1.79148433]
[1726869005349,4.31726,2547.7,2547.6,0.7631]
[1726869005849,0.39246,2547.7,2547.6,1.79148433]
[1726869006043,4.31726,2547.7,2547.6,0.7631]
[1726869006244,0.39246,2547.7,2547.6,1.79148433]
[1726869006445,2.05899235,2547.8,2547.6,0.7631]
[1726869006651,2.05899235,2547.9,2547.7,1.42668433]
[1726869006957,2.45141235,2547.9,2547.7,0.3983]
[1726869007343,2.05899235,2547.8,2547.7,0.3983]
[1726869009266,2.05899235,2547.8,2547.7,1.42668433]
[1726869009960,2.45141235,2547.9,2547.7,1.42668433]
[1726869010162,2.05899235,2547.8,2547.7,1.42668433]
[1726869010866,2.57658299,2547.8,2547.7,0.3983]
[1726869011951,2.96900299,2547.9,2547.7,0.3983]
[1726869012463,2.57658299,2547.9,2547.7,0.79075]
[1726869012966,2.96900299,2547.9,2547.7,0.79075]
[1726869015464,2.05946698,2547.8,2547.7,0.79075]
[1726869015660,2.05946448,2547.8,2547.7,0.79075]
[1726869016261,2.96900299,2547.9,2547.7,0.79075]
[1726869016462,2.05947704,2547.8,2547.7,0.79075]
[1726869018071,2.45189704,2547.9,2547.7,3.64221857]
[1726869018267,2.45189704,2547.9,2547.8,1.02917946]
[1726869021761,2.05947704,2547.9,2547.8,1.02917946]
[1726869021962,2.05947704,2548.0,2547.8,2.72922588]
[1726869022162,2.05947704,2548.0,2547.9,0.39242]
[1726869022461,2.05947704,2548.0,2547.9,0.77962]
[1726869022867,2.05947704,2548.0,2547.9,1.80879946]
[1726869023569,2.05947704,2548.0,2547.9,0.77962]
[1726869023871,2.05947704,2548.0,2547.9,1.80879946]
[1726869024373,2.05947704,2548.0,2547.9,0.77962]
[1726869024667,2.45187704,2548.0,2547.9,0.77962]
[1726869026266,2.05947704,2548.0,2547.9,0.77962]
[1726869026569,2.05947704,2548.0,2547.9,1.80879946]
[1726869026971,2.05947704,2548.0,2547.9,0.77962]
[1726869028068,2.05947704,2548.0,2547.9,4.70442]
[1726869028269,0.3924,2548.1,2548.0,0.3924]
[1726869028469,0.3924,2548.1,2548.0,1.80225966]
[1726869028680,0.3924,2548.1,2548.0,1.40985966]
[1726869030282,0.3924,2548.1,2548.0,0.3807]
[1726869031183,2.45185704,2548.2,2548.0,1.80224966]
[1726869031380,2.45184704,2548.2,2548.1,0.78619]
[1726869031681,0.39237,2548.2,2548.1,0.3938]
[1726869033580,2.44903353,2548.2,2548.1,0.78619]
[1726869035379,2.05666353,2548.2,2548.1,0.78619]
[1726869035882,2.05666353,2548.3,2548.2,0.39237]
[1726869036481,2.05666353,2548.3,2548.2,0.79987]
[1726869040983,0.39234,2548.4,2548.2,0.79987]
[1726869042683,0.39234,2548.4,2548.3,0.39235]
[1726869042880,2.05666353,2548.5,2548.2,0.4075]
[1726869043283,0.39235,2548.4,2548.2,0.79986]
[1726869043495,2.05666353,2548.5,2548.2,0.79986]
[1726869044385,0.39235,2548.4,2548.2,0.79986]
[1726869048092,2.44901353,2548.4,2548.2,0.79986]
[1726869049398,0.39235,2548.4,2548.2,0.79986]
[1726869050097,2.44901353,2548.4,2548.2,0.79986]
[1726869050395,0.39235,2548.4,2548.2,0.79986]
[1726869050592,2.05666353,2548.5,2548.2,0.79986]
[1726869050995,0.39235,2548.4,2548.2,0.79986]
[1726869051898,2.44901353,2548.4,2548.2,0.79986]
[1726869052493,0.39235,2548.4,2548.2,0.79986]
[1726869052995,1.37369,2548.6,2548.3,8.5518]
[1726869052996,2.05666353,2548.6,2548.3,8.5518]
[1726869053196,2.05666353,2548.6,2548.5,0.39232]
[1726869053390,2.44897353,2548.6,2548.5,0.39232]
[1726869053591,2.44897353,2548.6,2548.5,0.7658]
[1726869053797,0.39231,2548.6,2548.5,0.7658]
[1726869054792,2.44897353,2548.6,2548.5,0.7658]
[1726869054993,0.39231,2548.6,2548.5,0.7658]
[1726869063806,0.3923,2548.7,2548.5,1.15812]
[1726869066810,0.39231,2548.6,2548.5,0.7658]
[1726869070303,0.39233,2548.5,2548.3,4.62929966]
[1726869070513,0.39233,2548.5,2548.3,3.2078]
[1726869070514,5.0808,2548.5,2548.3,3.2078]
[1726869070813,4.31634,2548.4,2548.3,3.2078]
[1726869071310,3.924,2548.4,2548.3,0.39235]
[1726869071711,4.31634,2548.4,2548.2,3.77786]
[1726869072016,0.39234,2548.4,2548.2,3.77786]
[1726869072607,0.39234,2548.4,2548.3,0.407]
[1726869073108,0.39234,2548.4,2548.3,0.7818]
[1726869073310,2.44900353,2548.4,2548.3,0.7818]
[1726869073615,2.44899353,2548.5,2548.3,1.17415]
[1726869074507,2.05666353,2548.4,2548.3,1.17415]
[1726869075710,2.44899353,2548.5,2548.3,1.17415]
[1726869075913,2.05666353,2548.4,2548.3,1.17415]
[1726869077109,2.44899353,2548.5,2548.3,1.17415]
[1726869077317,2.05666353,2548.4,2548.3,1.17415]
[1726869078305,0.39233,2548.5,2548.3,2.20330966]
[1726869078710,0.78523,2548.5,2548.3,2.20330966]
[1726869079017,2.84189353,2548.5,2548.3,1.17415]
[1726869079506,2.84189353,2548.5,2548.3,2.20330966]
[1726869079710,2.84189353,2548.5,2548.3,1.17415]
[1726869080307,0.39233,2548.5,2548.3,2.20330966]
[1726869080610,2.44899353,2548.5,2548.3,2.20330966]
[1726869080914,0.39233,2548.5,2548.3,2.20330966]
[1726869081712,2.44899353,2548.5,2548.3,2.20330966]
[1726869084312,0.39233,2548.5,2548.3,2.20330966]
[1726869084509,0.39233,2548.5,2548.4,1.02915966]
[1726869085113,0.39233,2548.5,2548.3,2.20330966]
[1726869085315,0.39233,2548.5,2548.4,1.02915966]
[1726869085615,0.39233,2548.5,2548.3,2.20330966]
[1726869085816,2.44899353,2548.5,2548.3,2.20330966]
[1726869086414,2.05666353,2548.4,2548.3,1.17415]
[1726869086716,0.39237,2548.2,2548.1,1.02915966]
[1726869087011,2.57658299,2548.2,2548.0,0.7813]
[1726869087318,2.45111716,2548.1,2548.0,0.7813]
[1726869087520,2.05872716,2548.1,2548.0,0.7813]
[1726869088019,2.45111716,2548.1,2548.0,0.7813]
[1726869093315,0.39239,2548.1,2548.0,0.7813]
[1726869098820,0.39239,2548.1,2547.9,0.3813]
[1726869098821,0.3924,2548.0,2547.9,0.3813]
[1726869099025,0.3924,2548.0,2547.8,0.41]
[1726869099026,0.39242,2547.9,2547.8,0.41]
[1726869100222,0.39242,2547.9,2547.6,4.42661966]
[1726869100223,4.3214,2547.9,2547.6,1.02915966]
[1726869100526,0.39243,2547.8,2547.7,0.3716]
[1726869134242,4.78358299,2548.0,2547.7,0.3716]
[1726869134243,2.05872716,2548.0,2547.7,0.3716]
[1726869134443,0.20112716,2548.0,2547.8,3.2078]
[1726869134643,3.2078,2548.3,2547.8,3.2078]
[1726869134644,6.17674299,2548.3,2547.9,0.39241]
[1726869134845,5.78438299,2548.3,2548.0,0.39239]
[1726869135053,3.99658299,2548.6,2548.1,4.23695966]
[1726869135346,2.57658299,2548.6,2548.2,1.42151966]
[1726869135554,2.57658299,2548.7,2548.2,1.02915966]
[1726869135851,3.99658299,2548.8,2548.3,1.02915966]
[1726869136054,4.38887299,2548.8,2548.3,1.02915966]
[1726869136254,0.3923,2548.7,2548.2,1.42151966]
[1726869136449,0.3923,2548.7,2548.3,1.02915966]
[1726869136653,4.38886299,2548.8,2548.3,1.02915966]
[1726869136844,3.99658299,2548.8,2548.4,0.39234]
[1726869137046,1.42,2548.8,2548.4,0.39234]
[1726869137249,1.42,2548.8,2548.4,1.02915966]
[1726869137747,1.42,2548.8,2548.5,0.7711]
[1726869138351,1.81228,2548.8,2548.5,0.7711]
[1726869140762,0.39228,2548.8,2548.5,0.7711]
[1726869140953,1.81228,2548.8,2548.5,0.7711]
[1726869141859,0.39229,2548.7,2548.5,0.7711]
[1726869142763,1.81229,2548.8,2548.5,0.7711]
[1726869148366,0.39229,2548.7,2548.5,0.7711]
[1726869149070,0.39231,2548.6,2548.5,0.3968]
[1726869149363,1.52541,2548.6,2548.5,0.3968]
[1726869173791,0.3923,2548.7,2548.5,0.3968]
[1726869176381,2.44339271,2548.7,2548.5,0.3968]
[1726869177187,2.05109271,2548.6,2548.5,0.3968]
[1726869178283,2.56404093,2548.7,2548.5,0.3968]
[1726869178484,2.44892904,2548.6,2548.5,0.3968]
[1726869179381,2.95635093,2548.6,2548.5,0.3968]
[1726869179782,0.39231,2548.6,2548.5,0.3968]
[1726869179983,2.95634093,2548.7,2548.5,0.3968]
[1726869180184,0.3923,2548.7,2548.5,0.3968]
[1726869180589,0.39231,2548.6,2548.5,0.3968]
[1726869181289,0.3923,2548.7,2548.5,0.3968]
[1726869183291,2.96716981,2548.7,2548.5,1.42176508]
[1726869184793,2.57486981,2548.6,2548.5,1.81408508]
[1726869185196,2.57486981,2548.7,2548.5,1.81408508]
[1726869186797,2.96716981,2548.7,2548.5,1.81408508]
[1726869187188,2.57486981,2548.6,2548.5,1.42176508]
[1726869189598,2.96717981,2548.6,2548.5,1.42176508]
[1726869190496,2.57486981,2548.6,2548.5,1.42176508]
[1726869191497,0.3923,2548.7,2548.5,0.3968]
[1726869191695,0.3923,2548.7,2548.5,0.78912]
[1726869192393,0.3923,2548.7,2548.5,0.3968]
[1726869198487,2.96773837,2548.7,2548.5,1.42176508]
[1726869202090,2.57543837,2548.6,2548.5,1.42176508]
[1726869202602,2.57543837,2548.6,2548.5,2.73720546]
[1726869202807,2.57543837,2548.6,2548.5,1.42176508]
[1726869203300,2.57543837,2548.6,2548.5,1.81408508]
[1726869204002,2.57543837,2548.6,2548.5,3.12950651]
[1726869205908,2.57543837,2548.6,2548.5,3.12955359]
[1726869207408,2.57543837,2548.6,2548.5,1.81408508]
[1726869207910,2.06042451,2548.6,2548.5,3.64200915]
[1726869208395,2.96773837,2548.7,2548.5,3.64876177]
[1726869208702,2.96773837,2548.7,2548.6,1.0294748]
[1726869209306,2.96785,2548.7,2548.6,1.0294748]
[1726869210211,2.57555,2548.7,2548.6,1.0294748]
[1726869210403,2.57555,2548.7,2548.5,1.8185948]
[1726869210605,2.57555,2548.7,2548.6,1.0294748]
[1726869212310,0.77959,2548.8,2548.5,1.8185948]
[1726869212502,2.57545634,2548.7,2548.6,1.0294748]
[1726869212709,2.96774634,2548.7,2548.6,1.0294748]
[1726869213503,0.39229,2548.7,2548.5,1.4262748]
[1726869213705,2.57538784,2548.6,2548.5,1.4262748]
[1726869217712,2.57538784,2548.6,2548.5,1.8185948]
[1726869220709,2.96767784,2548.7,2548.5,3.64956327]
[1726869220915,2.96767784,2548.7,2548.6,1.03018654]
[1726869221106,2.96767784,2548.7,2548.6,2.34644205]
[1726869221802,2.96767784,2548.7,2548.6,1.03018654]
[1726869222210,0.3873,2548.8,2548.5,1.54420024]
[1726869222211,0.39231,2548.6,2548.5,1.03018654]
[1726869222414,3.34862155,2548.6,2548.5,1.03018654]
[1726869222616,2.83376603,2548.6,2548.5,2.86039825]
[1726869222912,0.77421,2548.6,2548.5,2.86039825]
[1726869223118,3.74732155,2548.6,2548.5,1.03015237]
[1726869223705,1.17291,2548.6,2548.5,2.34636275]
[1726869224102,3.74732155,2548.6,2548.5,2.34635939]
[1726869224304,2.57441155,2548.6,2548.5,1.42247237]
[1726869224509,2.05904519,2548.6,2548.5,1.70806862]
[1726869224705,2.05904519,2548.6,2548.5,3.64458886]
[1726869225111,2.96671155,2548.7,2548.5,3.64458886]
[1726869225409,2.96671155,2548.7,2548.6,1.43998042]
[1726869226412,2.96671155,2548.7,2548.6,0.4099]
[1726869226612,2.96671155,2548.7,2548.6,1.43998042]
[1726869228514,0.3923,2548.7,2548.5,0.3919]
[1726869228716,3.46414912,2548.8,2548.4,1.03008042]
[1726869228913,2.57375957,2548.6,2548.5,1.1869]
[1726869229219,2.57388362,2548.6,2548.5,2.21698042]
[1726869229510,2.57388362,2548.6,2548.5,2.60930042]
[1726869229708,2.57388362,2548.6,2548.5,1.57922]
[1726869229915,2.57388362,2548.6,2548.5,2.21698042]
[1726869230518,2.57388362,2548.6,2548.5,1.1869]
[1726869230812,2.57388362,2548.6,2548.5,2.21698042]
[1726869231119,2.96619362,2548.6,2548.5,2.21698042]
[1726869231313,2.57388362,2548.6,2548.5,1.1869]
[1726869231510,0.3923,2548.7,2548.5,1.1869]
[1726869231713,2.57266166,2548.6,2548.5,1.1869]
[1726869232121,2.57266166,2548.6,2548.5,2.21698042]
[1726869233312,2.57266166,2548.6,2548.5,1.1869]
[1726869234322,2.57266166,2548.6,2548.5,2.21698042]
[1726869235416,2.57266166,2548.6,2548.5,2.60930042]
[1726869235812,2.05781331,2548.6,2548.5,4.04718548]
[1726869236935,2.05781331,2548.6,2548.5,4.43950548]
[1726869240111,2.05781331,2548.6,2548.5,4.43936288]
[1726869243919,2.96496166,2548.7,2548.5,2.60915338]
[1726869246619,2.57266166,2548.6,2548.5,2.60915338]
[1726869246815,2.96496166,2548.7,2548.5,2.60915338]
[1726869247321,2.57266166,2548.7,2548.5,2.60915338]
[1726869247828,2.57266166,2548.7,2548.5,2.21683338]
[1726869248321,2.57266166,2548.7,2548.6,0.39231]
[1726869248525,0.77959,2548.8,2548.6,0.39231]
[1726869248724,0.77959,2548.8,2548.6,1.42224338]
[1726869248725,2.57388678,2548.7,2548.6,1.42224338]
[1726869249121,3.35347678,2548.8,2548.6,1.42224338]
[1726869249617,2.57388678,2548.7,2548.6,1.42224338]
[1726869250524,3.35347678,2548.8,2548.6,1.42224338]
[1726869250725,2.05958199,2548.7,2548.6,1.93651024]
[1726869250926,2.05958199,2548.7,2548.6,3.25225611]
[1726869251325,2.05958199,2548.7,2548.6,2.73783386]
[1726869251527,2.05958199,2548.7,2548.6,2.73778913]
[1726869251728,2.05958199,2548.7,2548.6,1.70805587]
[1726869252427,2.05958199,2548.7,2548.6,2.73778772]
[1726869252925,2.05958199,2548.7,2548.6,1.70805587]
[1726869253131,2.05958199,2548.7,2548.6,2.73782788]
[1726869253329,2.05958199,2548.7,2548.6,1.70805587]
[1726869254927,2.05958199,2548.7,2548.6,2.73776204]
[1726869255134,2.05958199,2548.7,2548.6,2.73778825]
[1726869255327,2.05958199,2548.7,2548.6,3.25225611]
[1726869255723,2.05958199,2548.7,2548.6,1.70805587]
[1726869256433,2.05958199,2548.7,2548.6,2.73772329]
[1726869258432,2.05958199,2548.7,2548.6,2.73666848]
[1726869258938,3.35347678,2548.8,2548.6,0.39231]
[1726869259135,2.57388678,2548.7,2548.6,0.39231]
[1726869259325,3.35347678,2548.8,2548.6,0.39231]
[1726869259736,2.57388678,2548.7,2548.6,0.39231]
[1726869260431,3.35347678,2548.8,2548.6,0.39231]
[1726869261239,3.35347678,2548.8,2548.6,1.42197742]
[1726869261534,2.57388678,2548.7,2548.6,0.39231]
[1726869262035,3.35347678,2548.8,2548.6,0.39231]
[1726869262733,2.57388678,2548.7,2548.6,0.39231]
[1726869262944,0.77959,2548.8,2548.6,0.39231]
[1726869262945,3.35347678,2548.8,2548.6,0.39231]
[1726869265432,3.35347678,2548.8,2548.6,1.42197742]
[1726869265737,3.35347678,2548.8,2548.6,0.39231]
[1726869265938,2.05916861,2548.7,2548.6,0.39231]
[1726869266139,2.05916861,2548.7,2548.6,1.70709084]
[1726869266436,2.05916861,2548.7,2548.6,2.73612029]
[1726869266639,2.05916861,2548.7,2548.6,2.73626312]
[1726869266839,2.05916861,2548.7,2548.6,1.70709084]
[1726869267030,2.05916861,2548.7,2548.6,2.73625649]
[1726869267437,2.05916861,2548.7,2548.6,1.42147565]
[1726869267835,2.05916861,2548.7,2548.6,2.73651529]
[1726869268138,2.05916861,2548.7,2548.6,2.73648215]
[1726869268333,2.05916861,2548.7,2548.6,1.42147565]
[1726869268540,2.05916861,2548.7,2548.6,2.73653494]
[1726869268739,2.05916861,2548.7,2548.6,1.42147565]
[1726869268936,2.05916861,2548.7,2548.6,2.73647965]
[1726869269243,2.05916861,2548.7,2548.6,1.42147565]
[1726869269442,2.05916861,2548.7,2548.6,2.736507]
[1726869269741,2.05916861,2548.7,2548.6,1.42147565]
[1726869270530,2.05916861,2548.7,2548.6,2.73657736]
[1726869270729,2.05916861,2548.7,2548.6,2.73659099]
[1726869270933,2.05916861,2548.7,2548.6,1.42147565]
[1726869272132,2.05916861,2548.7,2548.6,2.73660903]
[1726869272548,2.45145861,2548.7,2548.6,1.42147565]
[1726869272731,2.45145861,2548.7,2548.6,2.73665218]
[1726869272931,2.45145861,2548.7,2548.6,1.42147565]
[1726869273441,2.45145861,2548.7,2548.6,2.73666475]
[1726869273836,2.45145861,2548.7,2548.6,1.42147565]
[1726869275342,2.05916861,2548.7,2548.6,1.42147565]
[1726869275929,2.05916861,2548.7,2548.6,2.73642264]
[1726869277537,3.35347678,2548.8,2548.6,2.73642264]
[1726869277740,2.05969508,2548.7,2548.6,1.42147565]
[1726869277940,2.05969508,2548.7,2548.6,2.73639402]
[1726869277941,2.05969001,2548.7,2548.6,2.73639402]
[1726869278141,2.05969001,2548.7,2548.6,2.73639654]
[1726869279346,3.35347678,2548.8,2548.6,2.73639654]
[1726869279642,3.35347678,2548.8,2548.7,1.02935198]
[1726869280237,3.35347678,2548.8,2548.6,1.42166198]
[1726869280940,3.35347678,2548.8,2548.6,0.39231]
[1726869280941,2.57388678,2548.7,2548.6,0.39231]
[1726869284043,2.57388678,2548.7,2548.6,1.42166198]
[1726869284545,2.57388678,2548.7,2548.6,0.39231]
[1726869285239,2.96617678,2548.7,2548.5,5.81637198]
[1726869285444,2.96617678,2548.7,2548.6,1.02935198]
[1726869285857,2.96617678,2548.7,2548.5,5.81637198]
[1726869287150,2.57388678,2548.7,2548.5,5.81637198]
[1726869288251,2.57388678,2548.7,2548.6,0.39231]
[1726869288547,2.57388678,2548.7,2548.6,1.42166198]
[1726869289050,2.06003713,2548.7,2548.6,3.25164788]
[1726869289747,3.35346678,2548.8,2548.6,3.25164788]
[1726869289948,3.35346678,2548.8,2548.7,1.02911171]
[1726869292749,2.96118678,2548.8,2548.7,1.02911171]
[1726869292956,2.96118678,2548.8,2548.7,2.34409912]
[1726869293343,2.96118678,2548.8,2548.7,1.02911171]
[1726869296351,2.96118678,2548.8,2548.7,2.34452073]
[1726869296651,2.96118678,2548.8,2548.7,2.344501]
[1726869297151,2.96118678,2548.8,2548.7,1.02911171]
[1726869297346,2.96118678,2548.8,2548.7,2.34467406]
[1726869297554,2.96118678,2548.8,2548.7,1.02911171]
[1726869298950,2.96118678,2548.8,2548.7,2.34467595]
[1726869299149,2.96118678,2548.8,2548.7,2.34467611]
[1726869299457,2.96118678,2548.8,2548.7,2.34509764]
[1726869299756,2.96118678,2548.8,2548.7,2.34508569]
[1726869300255,2.96118678,2548.8,2548.7,1.3155644]
[1726869300458,2.96118678,2548.8,2548.7,1.02955158]
[1726869300657,2.96118678,2548.8,2548.7,2.34504538]
[1726869301050,2.96118678,2548.8,2548.7,2.34521283]
[1726869301248,0.3873,2548.8,2548.7,1.31560067]
[1726869301459,2.96118678,2548.8,2548.7,2.34525268]
[1726869301659,3.35346678,2548.8,2548.7,2.3453843]